[Event "22nd Ruzomberok Open 2019"]
[Site "Ruzomberok"]
[Date "2019.07.02"]
[Round "4.2"]
[White "Movsesian, Julia"]
[Black "Karas, Marek"]
[Result "1/2-1/2"]
[ECO "C08"]
[WhiteElo "2291"]
[BlackElo "2268"]
[Annotator "NA"]
[PlyCount "32"]
[EventDate "2019.06.29"]
[EventType "swiss"]
[EventCountry "SVK"]
[SourceTitle "playchess.com"]
[Source "ChessBase"]
[SourceQuality "1"]
[TimeControl "40/5400+30:1800+30"]

1. e4 {[%emt 0:00:00]} e6 {[%emt 0:00:00]} 2. d4 {[%emt 0:00:00]} d5 {[%emt 0:00:00]} 3. Nd2 {[%emt 0:00:00]} c5 {[%emt 0:00:00]} 4. exd5 {[%emt 0:00:17]} exd5 {[%emt 0:00:00]} 5. Ngf3 {[%emt 0:00:49]} a6 {[%emt 0:00:09]} 6. dxc5 {[%emt 0:04:31]} Bxc5 {[%emt 0:00:47]} 7. Bd3 {[%emt 0:00:54]} Qe7+ {[%emt 0:01:37]} 8. Be2 {[%emt 0:09:29]} Nf6 {[%emt 0:00:28]} 9. O-O {[%emt 0:00:32]} O-O {[%emt 0:00:21]} 10. Nb3 {[%emt 0:00:04]} Bb6 {[%emt 0:00:22]} 11. Bg5 {[%emt 0:00:53]} h6 {[%emt 0:01:12]} 12. Bh4 {[%emt 0:02:14]} g5 {[%emt 0:00:49]} 13. Bg3 {[%emt 0:00:09]} Nc6 {[%emt 0:03:23]} 14. c3 {[%emt 0:11:28]} Ne4 {[%emt 0:06:14]} 15. Nfd4 {[%emt 0:05:44]} Qf6 {[%emt 0:16:55]} 16. Bf3 {[%emt 0:03:57]} Be6 {[%emt 0:07:44]} 1/2-1/2

[Event "22nd Ruzomberok Open 2019"]
[Site "Ruzomberok"]
[Date "2019.07.02"]
[Round "4.3"]
[White "Jablonicky, Martin"]
[Black "Holly, Andrej"]
[Result "1-0"]
[ECO "A08"]
[WhiteElo "2378"]
[BlackElo "2046"]
[Annotator "NA"]
[PlyCount "51"]
[EventDate "2019.06.29"]
[EventType "swiss"]
[EventCountry "SVK"]
[SourceTitle "playchess.com"]
[Source "ChessBase"]
[SourceQuality "1"]
[TimeControl "40/5400+30:1800+30"]

1. Nf3 {[%emt 0:03:05]} d5 {[%emt 0:00:00]} 2. g3 {[%emt 0:02:07]} c5 {[%emt 0:01:01]} 3. Bg2 {[%emt 0:00:11]} Nc6 {[%emt 0:00:54]} 4. O-O {[%emt 0:00:50]} e5 {[%emt 0:02:01]} 5. d3 {[%emt 0:00:12]} Nf6 {[%emt 0:00:18]} 6. e4 {[%emt 0:00:47]} Be7 {[%emt 0:02:05]} 7. exd5 {[%emt 0:01:59]} Nxd5 {[%emt 0:00:27]} 8. Re1 {[%emt 0:00:08]} f6 {[%emt 0:03:28]} 9. c3 {[%emt 0:00:04]} O-O {[%emt 0:07:34]} 10. d4 {[%emt 0:00:43]} cxd4 {[%emt 0:04:39]} 11. cxd4 {[%emt 0:00:01]} Bb4 {[%emt 0:14:48]} 12. Nc3 {[%emt 0:00:08]} exd4 {[%emt 0:05:34]} 13. Nxd4 {[%emt 0:01:07]} Bxc3 {[%emt 0:06:15]} 14. bxc3 {[%emt 0:03:59]} Nxd4 {[%emt 0:02:27]} 15. Qxd4 {[%emt 0:00:13]} Nb6 {[%emt 0:01:50]} 16. Qb4 {[%emt 0:05:48]} Rf7 {[%emt 0:08:30]} 17. Be3 {[%emt 0:15:47]} Bf5 {[%emt 0:04:11]} 18. Qb3 {[%emt 0:04:44]} Bg6 {[%emt 0:10:35]} 19. Bxb6 {[%emt 0:00:58]} axb6 {[%emt 0:00:02]} 20. Rad1 {[%emt 0:00:44]} Qc7 {[%emt 0:00:28]} 21. Bd5 {[%emt 0:00:23]} Kh8 {[%emt 0:01:48]} 22. Bxf7 {[%emt 0:00:19]} Bxf7 {[%emt 0:00:01]} 23. Qb4 {[%emt 0:00:11]} Bxa2 {[%emt 0:04:12]} 24. Ra1 {[%emt 0:01:18]} Qc8 {[%emt 0:00:52]} 25. c4 {[%emt 0:00:55]} Ra5 {[%emt 0:02:41]} 26. Qxb6 {[%emt 0:00:29]} 1-0

[Event "22nd Ruzomberok Open 2019"]
[Site "Ruzomberok"]
[Date "2019.07.02"]
[Round "4.4"]
[White "Vojtek, Vladimir"]
[Black "Cech, Dominik"]
[Result "1/2-1/2"]
[ECO "C88"]
[WhiteElo "2313"]
[BlackElo "2092"]
[Annotator "NA"]
[PlyCount "98"]
[EventDate "2019.06.29"]
[EventType "swiss"]
[EventCountry "SVK"]
[SourceTitle "playchess.com"]
[Source "ChessBase"]
[SourceQuality "1"]
[TimeControl "40/5400+30:1800+30"]

1. e4 {[%emt 0:04:06]} e5 {[%emt 0:00:00]} 2. Nf3 {[%emt 0:00:10]} Nc6 {[%emt 0:00:00]} 3. Bb5 {[%emt 0:00:12]} a6 {[%emt 0:00:35]} 4. Ba4 {[%emt 0:00:06]} Nf6 {[%emt 0:00:23]} 5. O-O {[%emt 0:00:35]} Be7 {[%emt 0:00:33]} 6. Re1 {[%emt 0:00:09]} b5 {[%emt 0:00:34]} 7. Bb3 {[%emt 0:00:05]} d6 {[%emt 0:00:47]} 8. a4 {[%emt 0:01:00]} Rb8 {[%emt 0:04:53]} 9. axb5 {[%emt 0:01:54]} axb5 {[%emt 0:00:20]} 10. c3 {[%emt 0:01:13]} O-O {[%emt 0:13:17]} 11. d4 {[%emt 0:12:35]} exd4 {[%emt 0:03:26]} 12. Nxd4 {[%emt 0:04:50]} Nxd4 {[%emt 0:16:52]} 13. cxd4 {[%emt 0:00:14]} c5 {[%emt 0:00:24]} 14. Bf4 {[%emt 0:16:42]} cxd4 {[%emt 0:35:51]} 15. Qxd4 {[%emt 0:04:33]} Be6 {[%emt 0:00:39]} 16. Qd1 {[%emt 0:17:07]} Bxb3 {[%emt 0:05:36]} 17. Qxb3 {[%emt 0:00:03]} Qb6 {[%emt 0:00:25]} 18. Nc3 {[%emt 0:08:03]} b4 {[%emt 0:00:50]} 19. Nd1 {[%emt 0:08:30]} Ra8 {[%emt 0:02:05]} 20. Rc1 {[%emt 0:01:21]} Rfc8 {[%emt 0:01:13]} 21. Rxc8+ {[%emt 0:08:34]} Rxc8 {[%emt 0:00:02]} 22. Qd3 {[%emt 0:00:26]} Qc6 {[%emt 0:08:50]} 23. Ne3 {[%emt 0:02:26]} Bf8 {[%emt 0:00:09]} 24. f3 {[%emt 0:02:36]} Rd8 {[%emt 0:01:25]} 25. Bg5 {[%emt 0:00:49]} Be7 {[%emt 0:02:01]} 26. Nf5 {[%emt 0:00:17]} Qc7 {[%emt 0:00:18]} 27. Rc1 {[%emt 0:00:35]} Qa7+ {[%emt 0:00:20]} 28. Qd4 {[%emt 0:01:26]} Qb7 {[%emt 0:00:57]} 29. Rc4 {[%emt 0:01:22]} d5 {[%emt 0:00:49]} 30. Nxe7+ {[%emt 0:01:50]} Qxe7 {[%emt 0:00:07]} 31. Bxf6 {[%emt 0:00:26]} dxc4 {[%emt 0:00:14]} 32. Bxe7 {[%emt 0:00:36]} Rxd4 {[%emt 0:00:08]} 33. Bxb4 {[%emt 0:00:01]} f6 {[%emt 0:00:52]} 34. Kf2 {[%emt 0:00:13]} Kf7 {[%emt 0:00:25]} 35. g4 {[%emt 0:00:19]} Rd3 {[%emt 0:00:42]} 36. h4 {[%emt 0:00:18]} Ke6 {[%emt 0:01:06]} 37. Kg3 {[%emt 0:00:59]} g6 {[%emt 0:00:36]} 38. Kf4 {[%emt 0:00:38]} Rd7 {[%emt 0:00:25]} 39. Bc3 {[%emt 0:00:17]} Rd3 {[%emt 0:00:18]} 40. Bb4 {[%emt 0:01:10]} Rb3 {[%emt 0:00:52]} 41. Bc3 {[%emt 0:30:03]} Rb7 {[%emt 0:09:01]} 42. g5 {[%emt 0:00:00]} fxg5+ {[%emt 0:02:37]} 43. hxg5 {[%emt 0:00:00]} Rd7 {[%emt 0:07:11]} 44. Kg4 {[%emt 0:00:00]} Rf7 {[%emt 0:04:49]} 45. f4 {[%emt 0:00:00]} Rf8 {[%emt 0:00:11]} 46. Bd4 {[%emt 0:00:00]} Rf7 {[%emt 0:05:30]} 47. Bh8 {[%emt 0:00:00]} Rf8 {[%emt 0:00:40]} 48. Bc3 {[%emt 0:00:00]} Rf7 {[%emt 0:00:18]} 49. Bb4 {[%emt 0:00:00]} Rd7 {[%emt 0:00:56]} 1/2-1/2

[Event "22nd Ruzomberok Open 2019"]
[Site "Ruzomberok"]
[Date "2019.07.02"]
[Round "4.5"]
[White "Ambrozi, Peter"]
[Black "Zvarik, Martin"]
[Result "0-1"]
[ECO "A46"]
[WhiteElo "1888"]
[BlackElo "2308"]
[Annotator "NA"]
[PlyCount "60"]
[EventDate "2019.06.29"]
[EventType "swiss"]
[EventCountry "SVK"]
[SourceTitle "playchess.com"]
[Source "ChessBase"]
[SourceQuality "1"]
[TimeControl "40/5400+30:1800+30"]

1. d4 {[%emt 0:00:00]} Nf6 {[%emt 0:19:38]} 2. Nf3 {[%emt 0:00:00]} d6 {[%emt 0:00:12]} 3. g3 {[%emt 0:00:45]} Bg4 {[%emt 0:00:26]} 4. Bg2 {[%emt 0:00:15]} Nbd7 {[%emt 0:00:11]} 5. O-O {[%emt 0:02:42]} e5 {[%emt 0:01:01]} 6. c4 {[%emt 0:02:21]} c6 {[%emt 0:00:37]} 7. Nc3 {[%emt 0:04:27]} Be7 {[%emt 0:00:24]} 8. h3 {[%emt 0:02:48]} Bxf3 {[%emt 0:00:51]} 9. Bxf3 {[%emt 0:02:12]} O-O {[%emt 0:00:07]} 10. d5 {[%emt 0:02:46]} c5 {[%emt 0:02:14]} 11. Qc2 {[%emt 0:03:15]} Ne8 {[%emt 0:00:21]} 12. Be4 {[%emt 0:01:15]} g6 {[%emt 0:00:04]} 13. Bh6 {[%emt 0:00:43]} Ng7 {[%emt 0:00:04]} 14. a3 {[%emt 0:02:58]} f5 {[%emt 0:04:18]} 15. Bg2 {[%emt 0:00:16]} Rf7 {[%emt 0:00:22]} 16. Bxg7 {[%emt 0:10:40]} Kxg7 {[%emt 0:00:38]} 17. f4 {[%emt 0:01:35]} exf4 {[%emt 0:01:29]} 18. gxf4 {[%emt 0:00:13]} Bf6 {[%emt 0:00:50]} 19. e4 {[%emt 0:01:21]} a6 {[%emt 0:15:02]} 20. exf5 {[%emt 0:04:23]} gxf5 {[%emt 0:03:31]} 21. Rae1 {[%emt 0:01:07]} Kh8 {[%emt 0:04:09]} 22. Kh1 {[%emt 0:01:31]} Qg8 {[%emt 0:05:12]} 23. Ne2 {[%emt 0:05:44]} Bh4 {[%emt 0:00:55]} 24. Rb1 {[%emt 0:03:26]} Re8 {[%emt 0:04:26]} 25. Bf3 {[%emt 0:01:48]} Re3 {[%emt 0:02:05]} 26. Rg1 {[%emt 0:04:13]} Qe8 {[%emt 0:11:34]} 27. Bh5 {[%emt 0:09:36]} Rxh3+ {[%emt 0:01:00]} 28. Kg2 {[%emt 0:00:07]} Qe3 {[%emt 0:00:13]} 29. Qc3+ {[%emt 0:02:24]} Rg7+ {[%emt 0:00:13]} 30. Kf1 {[%emt 0:00:26]} Qf2# 0-1

[Event "22nd Ruzomberok Open 2019"]
[Site "Ruzomberok"]
[Date "2019.07.02"]
[Round "4.7"]
[White "Vacek, Ondrej"]
[Black "Hros, Roman"]
[Result "1-0"]
[ECO "A33"]
[WhiteElo "2125"]
[BlackElo "2195"]
[Annotator "ChessBase"]
[PlyCount "71"]
[EventDate "2019.06.29"]
[EventType "swiss"]
[EventCountry "SVK"]
[SourceTitle "playchess.com"]
[Source "ChessBase"]
[SourceQuality "1"]
[TimeControl "40/5400+30:1800+30"]

1. Nf3 {[%emt 0:00:00]} Nf6 {[%emt 0:00:09]} 2. c4 {[%emt 0:00:00]} c5 {[%emt 0:00:15]} 3. Nc3 {[%emt 0:00:00]} Nc6 {[%emt 0:00:15]} 4. d4 {[%emt 0:00:00]} cxd4 {[%emt 0:00:03]} 5. Nxd4 {[%emt 0:00:00]} e6 {[%emt 0:00:52]} 6. a3 {[%emt 0:00:03]} Be7 {[%emt 0:09:59]} 7. e4 {[%emt 0:01:26]} Qc7 {[%emt 0:03:52]} 8. Be2 {[%emt 0:09:03]} b6 {[%emt 0:01:53]} 9. Be3 {[%emt 0:01:46]} Bb7 {[%emt 0:00:06]} 10. Rc1 {[%emt 0:01:01]} Rc8 {[%emt 0:11:27]} 11. f3 {[%emt 0:08:39]} Qb8 {[%emt 0:03:43]} 12. O-O {[%emt 0:05:29]} O-O {[%emt 0:00:55]} 13. b4 {[%emt 0:02:44]} Ne5 {[%emt 0:12:49]} 14. Qb3 {[%emt 0:06:25]} Ng6 {[%emt 0:04:21]} 15. Kh1 {[%emt 0:11:47]} Rfe8 {[%emt 0:12:40]} 16. Bg1 {[%emt 0:08:01]} Nf4 {[%emt 0:02:14]} 17. Rfd1 {[%emt 0:00:40]} h5 {[%emt 0:05:33]} 18. Bf1 {[%emt 0:02:15]} h4 {[%emt 0:00:06]} 19. Nce2 {[%emt 0:02:39]} Ng6 {[%emt 0:05:17]} 20. h3 {[%emt 0:03:48]} d5 {[%emt 0:00:48]} 21. cxd5 {[%emt 0:02:59]} Rxc1 {[%emt 0:00:44]} 22. dxe6 {[%emt 0:02:11]} Rxd1 {[%emt 0:10:35]} 23. exf7+ {[%emt 0:00:27]} Kh7 {[%emt 0:00:16]} 24. fxe8=Q {[%emt 0:00:32]} Qxe8 {[%emt 0:00:33]} 25. Qxd1 {[%emt 0:00:10]} Bd6 {[%emt 0:00:25]} 26. Nf5 {[%emt 0:01:32]} Bb8 {[%emt 0:00:10]} 27. Qe1 {[%emt 0:02:04]} Nxe4 {[%emt 0:00:20]} 28. fxe4 {[%emt 0:01:27]} Qxe4 {[%emt 0:00:01]} 29. Qf2 {[%emt 0:03:08]} Qd3 {[%emt 0:00:39]} 30. Ne3 {[%emt 0:00:51]} Qxa3 {[%emt 0:00:37]} 31. Qf5 {[%emt 0:01:05]} Kh6 {[%emt 0:02:51]} 32. Ng4+ {[%emt 0:00:48]} Kh7 {[%emt 0:00:01]} 33. Qh5+ {[%emt 0:00:44]} Kg8 {[%emt 0:00:01]} 34. Qxg6 {[%emt 0:01:02]} Qxh3+ {[%emt 0:00:02]} 35. Bh2 {[%emt 0:01:59]} Bxh2 {[%emt 0:00:29]} 36. Nf6+ {[%emt 0:00:35]} 1-0

[Event "22nd Ruzomberok Open 2019"]
[Site "Ruzomberok"]
[Date "2019.07.02"]
[Round "4.8"]
[White "Pniaczek, Marek"]
[Black "Koloditsova, Renata"]
[Result "1-0"]
[ECO "B13"]
[WhiteElo "2276"]
[BlackElo "1903"]
[Annotator "NA"]
[PlyCount "99"]
[EventDate "2019.06.29"]
[EventType "swiss"]
[EventCountry "SVK"]
[SourceTitle "playchess.com"]
[Source "ChessBase"]
[SourceQuality "1"]
[TimeControl "40/5400+30:1800+30"]

1. e4 {[%emt 0:00:00]} c6 {[%emt 0:00:00]} 2. d4 {[%emt 0:00:00]} d5 {[%emt 0:00:00]} 3. exd5 {[%emt 0:00:00]} cxd5 {[%emt 0:00:19]} 4. Bd3 {[%emt 0:00:03]} Nf6 {[%emt 0:00:36]} 5. h3 {[%emt 0:02:50]} Nc6 {[%emt 0:02:01]} 6. Nf3 {[%emt 0:00:13]} g6 {[%emt 0:02:51]} 7. c3 {[%emt 0:01:24]} Bg7 {[%emt 0:00:33]} 8. Qc2 {[%emt 0:00:17]} Qc7 {[%emt 0:02:21]} 9. O-O {[%emt 0:00:47]} O-O {[%emt 0:01:00]} 10. Be3 {[%emt 0:04:44]} Bd7 {[%emt 0:02:19]} 11. Nbd2 {[%emt 0:01:28]} Rfc8 {[%emt 0:06:38]} 12. Rfc1 {[%emt 0:01:28]} a6 {[%emt 0:16:37]} 13. a4 {[%emt 0:03:26]} Rab8 {[%emt 0:04:52]} 14. b4 {[%emt 0:03:41]} e5 {[%emt 0:04:08]} 15. Nxe5 {[%emt 0:06:29]} Nxe5 {[%emt 0:00:10]} 16. dxe5 {[%emt 0:00:04]} Qxe5 {[%emt 0:00:11]} 17. Ba7 {[%emt 0:09:54]} Ra8 {[%emt 0:00:32]} 18. Bd4 {[%emt 0:00:06]} Qh5 {[%emt 0:02:49]} 19. Nb3 {[%emt 0:07:20]} Qg5 {[%emt 0:25:41]} 20. Be3 {[%emt 0:16:09]} Qe5 {[%emt 0:02:52]} 21. Nc5 {[%emt 0:03:04]} Qc7 {[%emt 0:01:14]} 22. Bd4 {[%emt 0:01:20]} Nh5 {[%emt 0:04:58]} 23. Qd2 {[%emt 0:02:41]} Be8 {[%emt 0:05:59]} 24. a5 {[%emt 0:02:21]} Nf4 {[%emt 0:01:02]} 25. Bxg7 {[%emt 0:01:04]} Kxg7 {[%emt 0:00:52]} 26. Bf1 {[%emt 0:01:02]} Bc6 {[%emt 0:00:13]} 27. Qd4+ {[%emt 0:02:00]} Kg8 {[%emt 0:00:07]} 28. Re1 {[%emt 0:02:57]} Re8 {[%emt 0:00:22]} 29. g3 {[%emt 0:06:15]} Nh5 {[%emt 0:00:16]} 30. Bg2 {[%emt 0:01:00]} Rad8 {[%emt 0:01:22]} 31. Rxe8+ {[%emt 0:00:59]} Rxe8 {[%emt 0:00:23]} 32. Rd1 {[%emt 0:00:14]} h6 {[%emt 0:07:28]} 33. Kh2 {[%emt 0:04:48]} Qe5 {[%emt 0:02:21]} 34. Bxd5 {[%emt 0:02:19]} Bxd5 {[%emt 0:00:18]} 35. Qxd5 {[%emt 0:00:04]} Qxc3 {[%emt 0:00:32]} 36. Qd4 {[%emt 0:02:50]} Qf3 {[%emt 0:00:56]} 37. Rd3 {[%emt 0:01:53]} Qc6 {[%emt 0:02:59]} 38. Qd7 {[%emt 0:02:52]} Nf6 {[%emt 0:00:31]} 39. Qxc6 {[%emt 0:00:57]} bxc6 {[%emt 0:00:03]} 40. Rd6 {[%emt 0:02:47]} Ne4 {[%emt 0:00:58]} 41. Rxc6 {[%emt 0:32:45]} Nxf2 {[%emt 0:04:07]} 42. Kg2 {[%emt 0:00:00]} Re2 {[%emt 0:01:16]} 43. Kf3 {[%emt 0:00:00]} Ra2 {[%emt 0:06:27]} 44. Rxa6 {[%emt 0:00:00]} Nxh3 {[%emt 0:00:21]} 45. b5 {[%emt 0:00:00]} Ng5+ {[%emt 0:02:50]} 46. Ke3 {[%emt 0:00:00]} Ra3+ {[%emt 0:01:35]} 47. Kd4 {[%emt 0:00:00]} Rxg3 {[%emt 0:02:29]} 48. b6 {[%emt 0:00:00]} Nf3+ {[%emt 0:03:56]} 49. Kd5 {[%emt 0:00:00]} Rg5+ {[%emt 0:00:46]} 50. Kd6 {[%emt 0:00:00]} 1-0

[Event "22nd Ruzomberok Open 2019"]
[Site "Ruzomberok"]
[Date "2019.07.02"]
[Round "4.9"]
[White "Karcol, Jan"]
[Black "Borsos, Bogdan"]
[Result "0-1"]
[ECO "D05"]
[WhiteElo "1882"]
[BlackElo "2216"]
[Annotator "ChessBase"]
[PlyCount "57"]
[EventDate "2019.06.29"]
[EventType "swiss"]
[EventCountry "SVK"]
[SourceTitle "playchess.com"]
[Source "ChessBase"]
[SourceQuality "1"]
[TimeControl "40/5400+30:1800+30"]

1. d4 {[%emt 0:00:00]} Nf6 {[%emt 0:06:48]} 2. Nf3 {[%emt 0:00:00]} e6 {[%emt 0:00:22]} 3. e3 {[%emt 0:00:00]} c5 {[%emt 0:00:15]} 4. Bd3 {[%emt 0:00:26]} d5 {[%emt 0:01:13]} 5. c3 {[%emt 0:00:40]} Nc6 {[%emt 0:00:20]} 6. O-O {[%emt 0:00:19]} Bd6 {[%emt 0:02:10]} 7. Nbd2 {[%emt 0:00:27]} O-O {[%emt 0:01:38]} 8. dxc5 {[%emt 0:01:05]} Bxc5 {[%emt 0:00:06]} 9. e4 {[%emt 0:00:31]} dxe4 {[%emt 0:10:37]} 10. Nxe4 {[%emt 0:00:13]} Nxe4 {[%emt 0:00:18]} 11. Bxe4 {[%emt 0:00:02]} Qxd1 {[%emt 0:00:13]} 12. Rxd1 {[%emt 0:00:02]} Bb6 {[%emt 0:02:20]} 13. b4 {[%emt 0:02:37]} Rd8 {[%emt 0:04:21]} 14. Bb2 {[%emt 0:02:01]} Bd7 {[%emt 0:00:22]} 15. a3 {[%emt 0:00:35]} f5 {[%emt 0:00:57]} 16. Bc2 {[%emt 0:01:13]} h6 {[%emt 0:04:11]} 17. Bb3 {[%emt 0:02:00]} Kf8 {[%emt 0:00:45]} 18. Rxd7 {[%emt 0:11:45]} Rxd7 {[%emt 0:00:09]} 19. Bxe6 {[%emt 0:00:06]} Re7 {[%emt 0:00:32]} 20. Bxf5 {[%emt 0:00:25]} Re2 {[%emt 0:00:31]} 21. Rb1 {[%emt 0:00:31]} Rxf2 {[%emt 0:00:37]} 22. Kh1 {[%emt 0:00:10]} Re8 {[%emt 0:01:28]} 23. Bd3 {[%emt 0:05:43]} Re3 {[%emt 0:07:59]} 24. Bb5 {[%emt 0:07:36]} a6 {[%emt 0:10:47]} 25. Bxc6 {[%emt 0:04:20]} bxc6 {[%emt 0:00:18]} 26. c4 {[%emt 0:01:37]} Rb3 {[%emt 0:02:04]} 27. c5 Rbxb2 28. Rxb2 Rxb2 29. Ng1 0-1

[Event "22nd Ruzomberok Open 2019"]
[Site "Ruzomberok"]
[Date "2019.07.02"]
[Round "4.10"]
[White "Mrvova, Alena"]
[Black "Pecho, Juraj"]
[Result "1-0"]
[ECO "B07"]
[WhiteElo "2153"]
[BlackElo "1900"]
[Annotator "NA"]
[PlyCount "79"]
[EventDate "2019.06.29"]
[EventType "swiss"]
[EventCountry "SVK"]
[SourceTitle "playchess.com"]
[Source "ChessBase"]
[SourceQuality "1"]
[TimeControl "40/5400+30:1800+30"]

1. e4 {[%emt 0:00:00]} d6 {[%emt 0:00:00]} 2. d4 {[%emt 0:00:24]} Nf6 {[%emt 0:00:00]} 3. Nc3 {[%emt 0:00:27]} Nbd7 {[%emt 0:00:00]} 4. f4 {[%emt 0:00:44]} e5 {[%emt 0:00:05]} 5. Nf3 {[%emt 0:01:11]} exd4 {[%emt 0:00:09]} 6. Qxd4 {[%emt 0:01:09]} c6 {[%emt 0:00:09]} 7. Be3 {[%emt 0:01:58]} d5 {[%emt 0:01:28]} 8. e5 {[%emt 0:05:41]} Ng4 {[%emt 0:01:10]} 9. Bg1 {[%emt 0:00:52]} Bc5 {[%emt 0:00:53]} 10. Qd2 {[%emt 0:00:08]} Bxg1 {[%emt 0:01:12]} 11. Rxg1 {[%emt 0:03:36]} Qb6 {[%emt 0:01:20]} 12. Na4 {[%emt 0:02:19]} Qe3+ {[%emt 0:05:22]} 13. Qxe3 {[%emt 0:00:07]} Nxe3 {[%emt 0:00:01]} 14. Bd3 {[%emt 0:01:09]} c5 {[%emt 0:07:24]} 15. Kd2 {[%emt 0:02:10]} d4 {[%emt 0:04:50]} 16. Bb5 {[%emt 0:02:31]} b6 {[%emt 0:12:01]} 17. c3 {[%emt 0:01:08]} Bb7 {[%emt 0:13:30]} 18. cxd4 {[%emt 0:01:17]} cxd4 {[%emt 0:02:57]} 19. Nxd4 {[%emt 0:00:27]} Nxg2 {[%emt 0:02:08]} 20. Nf5 {[%emt 0:00:20]} O-O-O {[%emt 0:09:42]} 21. Nd6+ {[%emt 0:00:17]} Kb8 {[%emt 0:00:15]} 22. Nxb7 {[%emt 0:00:52]} Nxe5+ {[%emt 0:01:13]} 23. Nxd8 {[%emt 0:00:08]} Nf3+ {[%emt 0:00:36]} 24. Kc3 {[%emt 0:00:30]} Nxg1 {[%emt 0:00:32]} 25. Nc6+ {[%emt 0:00:40]} Kb7 {[%emt 0:00:23]} 26. Rxg1 {[%emt 0:00:08]} Nxf4 {[%emt 0:03:04]} 27. Rxg7 {[%emt 0:00:31]} Nd5+ {[%emt 0:00:09]} 28. Kd4 {[%emt 0:00:50]} Nc7 {[%emt 0:00:17]} 29. Rxf7 {[%emt 0:00:23]} a6 {[%emt 0:00:33]} 30. Bxa6+ {[%emt 0:00:37]} Kxc6 {[%emt 0:03:31]} 31. Rf6+ {[%emt 0:00:10]} Kd7 {[%emt 0:00:24]} 32. Rxb6 {[%emt 0:00:17]} Ne6+ {[%emt 0:01:00]} 33. Ke5 {[%emt 0:00:13]} Nd8 {[%emt 0:01:58]} 34. Bb5+ {[%emt 0:01:24]} Kc7 {[%emt 0:00:27]} 35. Ra6 {[%emt 0:01:24]} h5 {[%emt 0:03:14]} 36. Ra7+ {[%emt 0:01:03]} Kb8 {[%emt 0:00:30]} 37. Rg7 {[%emt 0:00:09]} h4 {[%emt 0:00:41]} 38. Nc3 {[%emt 0:01:58]} Rh6 {[%emt 0:01:27]} 39. Rg8 {[%emt 0:02:52]} Kc8 {[%emt 0:00:01]} 40. Nd5 {[%emt 0:00:30]} 1-0

[Event "22nd Ruzomberok Open 2019"]
[Site "Ruzomberok"]
[Date "2019.07.02"]
[Round "4.11"]
[White "Bemak, Mikhail"]
[Black "Orvisky, Vladimir"]
[Result "1-0"]
[ECO "D46"]
[WhiteElo "2102"]
[BlackElo "1719"]
[Annotator "ChessBase"]
[PlyCount "79"]
[EventDate "2019.06.29"]
[EventType "swiss"]
[EventCountry "SVK"]
[SourceTitle "playchess.com"]
[Source "ChessBase"]
[SourceQuality "1"]
[TimeControl "40/5400+30:1800+30"]

1. d4 {[%emt 0:04:44]} d5 {[%emt 0:00:00]} 2. c4 {[%emt 0:01:43]} c6 {[%emt 0:00:00]} 3. Nf3 {[%emt 0:00:54]} Nf6 {[%emt 0:00:00]} 4. Nc3 {[%emt 0:01:00]} e6 {[%emt 0:01:26]} 5. e3 {[%emt 0:02:12]} Be7 {[%emt 0:04:08]} 6. Bd3 {[%emt 0:01:11]} Nbd7 {[%emt 0:00:19]} 7. O-O {[%emt 0:02:38]} O-O {[%emt 0:02:13]} 8. b3 {[%emt 0:01:31]} b6 {[%emt 0:02:57]} 9. Qe2 {[%emt 0:02:19]} Bb7 {[%emt 0:03:31]} 10. Bb2 {[%emt 0:03:01]} Rc8 {[%emt 0:01:10]} 11. Rac1 {[%emt 0:18:21]} c5 {[%emt 0:22:42]} 12. Rfd1 {[%emt 0:01:07]} Re8 {[%emt 0:28:32]} 13. Ne5 {[%emt 0:03:58]} Ne4 {[%emt 0:06:18]} 14. Bxe4 {[%emt 0:01:58]} cxd4 {[%emt 0:04:41]} 15. Bxh7+ {[%emt 0:03:51]} Kxh7 {[%emt 0:00:40]} 16. Qh5+ {[%emt 0:00:28]} Kg8 {[%emt 0:00:04]} 17. Qxf7+ {[%emt 0:00:53]} Kh7 {[%emt 0:00:10]} 18. Qg6+ {[%emt 0:00:54]} Kg8 {[%emt 0:00:46]} 19. Qxe6+ {[%emt 0:00:23]} Kh7 {[%emt 0:00:27]} 20. Qg6+ {[%emt 0:11:40]} Kg8 {[%emt 0:01:39]} 21. exd4 {[%emt 0:00:36]} dxc4 {[%emt 0:00:13]} 22. Qe6+ {[%emt 0:01:06]} Kh7 {[%emt 0:01:13]} 23. Qxd7 {[%emt 0:00:30]} cxb3 {[%emt 0:00:01]} 24. Qf5+ {[%emt 0:00:27]} Kg8 {[%emt 0:00:07]} 25. Qf7+ {[%emt 0:00:10]} Kh7 {[%emt 0:00:56]} 26. axb3 {[%emt 0:02:36]} Rf8 {[%emt 0:00:04]} 27. Qg6+ {[%emt 0:01:54]} Kg8 {[%emt 0:00:08]} 28. Qe6+ {[%emt 0:00:46]} Kh7 {[%emt 0:01:37]} 29. Rd3 {[%emt 0:00:38]} Bh4 {[%emt 0:00:16]} 30. Qg6+ {[%emt 0:08:45]} Kg8 {[%emt 0:04:01]} 31. Ng4 {[%emt 0:00:38]} Qe7 {[%emt 0:08:25]} 32. d5 {[%emt 0:02:29]} Qc5 {[%emt 0:04:23]} 33. g3 {[%emt 0:04:15]} Rf6 {[%emt 0:00:05]} 34. Nxf6+ {[%emt 0:00:31]} Bxf6 {[%emt 0:00:23]} 35. Ne4 {[%emt 0:01:05]} Qxc1+ {[%emt 0:00:10]} 36. Bxc1 {[%emt 0:00:13]} Rxc1+ {[%emt 0:00:21]} 37. Kg2 {[%emt 0:00:28]} Bb2 {[%emt 0:00:31]} 38. Ng5 {[%emt 0:01:22]} Bxd5+ {[%emt 0:00:37]} 39. Rxd5 {[%emt 0:00:28]} Rc8 40. Qe6+ {[%emt 0:01:34]} 1-0